Cogmind - Beta 14 @@@ ROGUE MODE // 2024.09.21 @ 20:12:23 Player: trisiak Result: Escaped! Performance ------------- Evolutions (9) 4500 Regions Visited (23) 4600 Robots Destroyed (246) 1230 Value Destroyed (7155) 7155 Prototype IDs (73) 1460 Alien Tech Used (0) 0 Bonus (7145) 7145 TOTAL SCORE: 26090 Bonus ------- High Alert Combat Kills 712 Follower Combat Kills 2429 Entered DSFs 500 Network Hubs Disabled 400 Aligned with FarCom 300 Built Enhanced Grunts 300 A7 Reached Mainframe 300 Met R17 at Cetus 500 Win 3000 Friendly Fire -1296 Cogmind --------- Core Integrity 1379/1600 Matter 149/300 Energy 19/170 System Corruption 6% Temperature Cool (9) Movement Flying (23) Location To Epsilon Eridani Parts ------- > --- POWER (2) -------- Mini Fusion Reactor > --- PROPULSION (7) --- Cooled Nuclear Pulse Thruster Field Propulsion Array Field Propulsion Array Cooled Q-thruster Cooled Q-thruster > --- UTILITY (14) ----- Experimental Power Amplifier Advanced Cooling System Medium Storage Unit Advanced Gravity Neutralizer Structural Scanner Advanced Terrain Scan Processor Improved Transmission Jammer Medium Regenerative Plating Advanced Hacking Suite Advanced Hacking Suite Advanced Hacking Suite Advanced Hacking Suite Improved System Shield Skeleton Box > --- WEAPON (2) ------- Enhanced Nova Cannon > --- INVENTORY (10) --- Cooled Nuclear Pulse Thruster Field Propulsion Array Advanced ECM Suite Long-range Tractor Beam Compact HERF Cannon Hardcell Cannon Gravity Flail Peak State ------------ > --- POWER ------------ Light Angular Momentum Engine Mini Fusion Reactor > --- PROPULSION ------- Cooled Nuclear Pulse Thruster Field Propulsion Array Field Propulsion Array Cooled Q-thruster Cooled Q-thruster > --- UTILITY ---------- Experimental Power Amplifier Advanced Cooling System Medium Storage Unit Advanced Gravity Neutralizer Structural Scanner Advanced Terrain Scanner Advanced Terrain Scan Processor Improved Transmission Jammer Medium Regenerative Plating Advanced Hacking Suite Advanced Hacking Suite Advanced Hacking Suite Advanced Hacking Suite Improved System Shield > --- WEAPON ----------- Compact HERF Cannon Enhanced Nova Cannon > --- INVENTORY -------- Light Ion Engine Mini Fusion Reactor Cooled Nuclear Pulse Thruster Advanced ECM Suite Skeleton Box Long-range Tractor Beam Hardcell Cannon Long-range Missile Launcher CPS Tube Ripper [Rating: 166] Favorites ----------- Power Cooled Ion Engine Engine Cooled Ion Engine Power Core Micro Fission Core Reactor Mini Fusion Reactor Propulsion Light Treads Treads Light Treads Leg Aluminum Leg Wheel Compact Wheel Hover Unit Combat Airjet Flight Unit Nuclear Pulse Thruster Utility Advanced Hacking Suite Device Structural Scanner Storage Huge Storage Unit Processor Advanced Targeting Computer Hackware Advanced Hacking Suite Protection Hardened Medium Armor Plating Weapon Enhanced Autogun Energy Gun EM Pulse Gun Energy Cannon Advanced Beam Cannon Ballistic Gun Enhanced Autogun Ballistic Cannon Advanced Assault Cannon Launcher Long-range Missile Launcher Special Weapon CPS Tube Impact Weapon Mace Slashing Weapon Ripper Piercing Weapon Spear Special Melee Weapon Datajack Build | -11 -10 -10 -10 -9 -8 -8 -8 -8 -6 -6 -6 -6 -5 -5 -5 -5 -5 -4 -4 -4 -3 -2 -1 ------- Run | Yrd Mat Min Exi Min Mat Sto Rec Scr Fac Was Fac DSF Fac Ext Cet Arc Hub Fac Was Fac Res Res Acc Slots Evolved 18 | . . . . . 4 . . . 4 . . . 2 . . . . 2 . . 2 2 2 Power 1 | . . . . . . . . . 1 . . . . . . . . . . . . . . Propulsion 5 | . . . . . 2 . . . 1 . . . . . . . . . . . 1 . 1 Utility 12 | . . . . . 2 . . . 2 . . . 2 . . . . 2 . . 1 2 1 Weapon . | . . . . . . . . . . . . . . . . . . . . . . . . Parts Attached 472 | 2 17 1 6 8 71 40 7 17 40 2 9 13 12 38 16 24 16 64 2 7 9 24 27 Power 33 | . 2 . . . 1 1 . . 3 . 1 . . 2 2 4 1 11 . . . 2 3 Engine 15 | . 2 . . . 1 1 . . 1 . . . . 1 1 1 . 5 . . . 1 1 Core 6 | . . . . . . . . . 2 . 1 . . 1 . . . 2 . . . . . Reactor 12 | . . . . . . . . . . . . . . . 1 3 1 4 . . . 1 2 Propulsion 103 | . 3 . . . 19 10 . 3 11 . 3 7 2 6 5 9 . 14 . 1 2 1 7 Treads 46 | . 3 . . . 16 10 . 2 . . . . . 6 4 4 . 1 . . . . . Leg 1 | . . . . . . . . . 1 . . . . . . . . . . . . . . Wheel 1 | . . . . . . . . . 1 . . . . . . . . . . . . . . Hover 9 | . . . . . 1 . . . 3 . 3 . . . 1 . . 1 . . . . . Flight 46 | . . . . . 2 . . 1 6 . . 7 2 . . 5 . 12 . 1 2 1 7 Utility 199 | 1 9 1 3 8 29 9 4 8 16 1 5 5 8 16 5 5 6 32 . 5 3 11 9 Device 134 | 1 6 1 3 7 19 8 4 6 9 1 4 3 4 6 3 2 4 21 . 4 2 8 8 Storage 11 | . 1 . . 1 1 . . . 1 . . . . 3 . 2 . 2 . . . . . Processor 10 | . . . . . 3 . . . 3 . 1 . 2 . . . . . . 1 . . . Hackware 13 | . . . . . . . . . 3 . . 2 2 2 . . . 2 . . 1 1 . Protection 31 | . 2 . . . 6 1 . 2 . . . . . 5 2 1 2 7 . . . 2 1 Artifact . | . . . . . . . . . . . . . . . . . . . . . . . . Weapon 137 | 1 3 . 3 . 22 20 3 6 10 1 . 1 2 14 4 6 9 7 2 1 4 10 8 Energy Gun 4 | 1 1 . . . . 1 . 1 . . . . . . . . . . . . . . . Energy Cannon 13 | . 2 . 2 . . . 1 . . . . . . . . . . . . . 2 4 2 Ballistic Gun 20 | . . . . . . 9 1 3 . . . . . 1 3 1 2 . . . . . . Ballistic Cannon 30 | . . . . . 13 1 . . . . . . . 1 . 2 3 3 . 1 2 3 1 Launcher 28 | . . . . . 3 3 . 1 5 . . . 1 4 1 . 4 2 1 . . 1 2 Special Weapon 3 | . . . . . . . . 1 2 . . . . . . . . . . . . . . Impact Weapon 16 | . . . . . 6 6 1 . 1 . . . . . . . . . . . . . 2 Slashing Weapon 20 | . . . . . . . . . 1 1 . 1 1 8 . 2 . 2 1 . . 2 1 Piercing Weapon 1 | . . . . . . . . . 1 . . . . . . . . . . . . . . Special Melee Weapon 2 | . . . 1 . . . . . . . . . . . . 1 . . . . . . . Unidentified Prototypes 30 | . 1 . . . 4 4 . . 1 . . . . . 6 . . 7 1 1 1 2 2 Corrupted Parts 4 | 1 . . . . . . . . . . . . . . 3 . . . . . . . . System Corruption 25 | 1 . . . . . . . . . . . . . . 24 . . . . . . . . Parts Lost 28 | . 1 . . . . . . 4 2 . . 2 . 6 . . 3 4 . . . . 6 Power 7 | . . . . . . . . 1 . . . 1 . 1 . . . 1 . . . . 3 Propulsion 8 | . . . . . . . . 1 2 . . 1 . 1 . . 1 1 . . . . 1 Utility 10 | . 1 . . . . . . 1 . . . . . 3 . . 2 2 . . . . 1 Weapon 3 | . . . . . . . . 1 . . . . . 1 . . . . . . . . 1 Highest Loss Streak 4 | . 1 . . . . . . 4 1 . . 1 . 2 . . 2 2 . . . . 3 To Critical Strikes . | . . . . . . . . . . . . . . . . . . . . . . . . Average Slot Usage (%) 95 | . 99 100 91 99 99 99 100 99 77 78 85 90 91 94 89 85 87 93 94 90 89 90 90 Engine 7 | . 14 14 14 14 8 9 9 8 5 . 1 4 . 2 . . . 2 5 5 4 3 3 Core 1 | . . . . . . . . . . 6 6 6 9 6 5 5 5 4 . . . . . Treads 23 | . 25 28 28 28 35 35 36 35 . . . . . 15 18 16 16 . . . . . . Flight 4 | . . . . . . . . . 9 26 26 26 22 10 . . . 20 21 16 18 17 20 Device 12 | . 13 14 13 13 13 9 9 8 12 13 13 13 10 7 4 7 12 18 15 19 18 21 23 Storage 8 | . 14 14 14 14 9 9 9 9 3 6 6 6 5 5 5 5 5 4 5 5 4 4 4 Processor 6 | . . . . . 8 9 9 9 5 6 6 6 11 11 11 11 11 7 5 5 4 4 4 Hackware 5 | . . . . . . . . . 16 13 13 13 17 15 16 11 11 14 21 21 23 21 20 Protection 4 | . . . . . 5 8 9 8 . . . . . 3 6 8 3 4 5 1 . 3 3 Energy Cannon 6 | . 25 28 12 28 1 . . . . . . . . . . . . . . . . 3 3 Ballistic Gun 5 | . 1 . . . . 11 16 17 . . . . . 2 4 . 4 . . . . . . Ballistic Cannon 2 | . . . . . 12 4 . . . . . . . 2 3 3 2 4 5 5 4 . . Slashing Weapon 1 | . . . . . . . . . . 4 6 6 5 2 . 4 2 4 3 5 4 3 2 Peak Build Rating 166 | 9 15 15 21 17 36 39 40 42 48 43 56 74 94 91 125 124 123 122 120 122 128 145 166 Average Rating 52 | 7 12 14 12 16 30 34 37 38 38 41 47 62 84 85 118 116 116 107 115 114 125 140 158 On Entrance 65 | 6 9 15 14 16 17 32 37 38 40 36 43 56 65 89 88 124 116 114 114 115 115 126 141 Naked Turns . | . . . . . . . . . . . . . . . . . . . . . . . . Heaviest Build 139 | 12 94 94 94 94 115 113 107 109 21 20 24 25 33 118 139 139 139 124 52 52 45 59 68 Greatest Support 204 | 20 40 40 40 40 85 85 84 84 22 30 30 39 34 140 188 204 188 101 52 53 60 59 75 Greatest Overweight (x) 10 | . 2 2 2 2 1 1 1 1 1 1 1 . . 10 1 2 . 3 . . . . . Average Overweight (x) . | . 1 2 2 2 1 1 1 1 . . . . . . . . . . . . . . . Largest Inventory Capacity 25 | 8 25 25 25 25 25 25 25 25 25 10 10 10 10 25 25 25 25 25 10 10 10 10 10 Average Capacity 20 | 8 20 25 25 25 25 25 25 25 7 10 10 10 10 13 25 24 25 14 10 10 10 10 10 Most Carried 25 | 7 18 24 25 25 25 25 25 25 25 10 10 10 10 25 25 25 25 24 10 10 10 10 10 Average Carried 19 | 6 14 20 24 24 24 24 24 24 7 9 9 9 9 13 24 24 24 12 9 9 9 9 9 Final Capacity 25 | 8 25 25 25 25 25 25 25 25 10 10 10 10 10 25 25 25 25 10 10 10 10 10 10 Final Carried 25 | 7 18 24 25 25 24 25 25 25 10 9 10 10 10 25 25 25 24 10 10 10 10 10 8 Class Distribution -------------------- 55% | Mutant 9% | Hacker-Scout 7% | Hacker-Mutant 4% | Skirmisher 4% | Scavenger-Scout 3% | Scavenger-Assassin 3% | Wizard-Ninja 3% | Scavenger-Mutant 3% | Assassin Dominant Class ---------------- Mutant | -10/Materials Mutant | -10/Mines Mutant | -10/Exiles Skirmisher | -9/Mines Mutant | -8/Materials Mutant | -8/Storage Mutant | -8/Recycling Mutant | -8/Scraptown Hacker-Scout | -6/Factory Scavenger-Assassin | -6/Waste Scavenger-Scout | -6/Factory Hacker-Scout | -6/DSF Hacker-Scout | -5/Factory Hacker-Mutant | -5/Extension Hacker-Mutant | -5/Cetus Scavenger-Mutant | -5/Archives Scavenger-Assassin | -5/Hub_04(d) Scavenger-Assassin | -4/Factory Hacker-Scout | -4/Waste Hacker-Scout | -4/Factory Wizard-Ninja | -3/Research Wizard-Ninja | -2/Research Wizard-Ninja | -1/Access Resources | -11 -10 -10 -10 -9 -8 -8 -8 -8 -6 -6 -6 -6 -5 -5 -5 -5 -5 -4 -4 -4 -3 -2 -1 ----------- Run | Yrd Mat Min Exi Min Mat Sto Rec Scr Fac Was Fac DSF Fac Ext Cet Arc Hub Fac Was Fac Res Res Acc Matter Collected 9544 | 241 372 178 236 152 1575 1210 198 379 349 100 40 185 . 1053 362 480 347 862 . 456 101 355 313 Remotely 668 | . . . . . . . . . . . . . . . . . 248 420 . . . . . Salvage Created 9971 | 132 546 23 . 65 1257 2042 555 711 774 148 40 . . 1146 115 308 235 606 . 133 101 510 524 Parts 529 | 7 32 4 . 5 59 123 16 47 38 4 7 . . 55 12 25 11 33 . 2 1 25 23 Haulers Intercepted 23 | . 2 . . . 5 4 . . . . . . . 7 . . . 2 . . . 1 2 Recyclers Shooed 4 | . . . . . . 1 . . 1 . . . . . . . . . . 1 . 1 . Parts Field Recycled . | . . . . . . . . . . . . . . . . . . . . . . . . Retrieved Matter . | . . . . . . . . . . . . . . . . . . . . . . . . Parts Self-Destructed . | . . . . . . . . . . . . . . . . . . . . . . . . Prevented . | . . . . . . . . . . . . . . . . . . . . . . . . Kills | -11 -10 -10 -10 -9 -8 -8 -8 -8 -6 -6 -6 -6 -5 -5 -5 -5 -5 -4 -4 -4 -3 -2 -1 ------- Run | Yrd Mat Min Exi Min Mat Sto Rec Scr Fac Was Fac DSF Fac Ext Cet Arc Hub Fac Was Fac Res Res Acc Combat Hostiles Destroyed 123 | . 9 . . 1 22 35 3 11 6 . . . . 3 1 . 3 15 . 1 . 7 6 Melee 8 | . . . . . . . . . 3 . . . . 1 . . . 2 . 1 . . 1 Guns 26 | . . . . . . 16 3 7 . . . . . . . . . . . . . . . Cannons 34 | . 8 . . 1 14 7 . . . . . . . 1 1 . 1 . . . . . 1 AOE 52 | . . . . . 7 11 . 4 3 . . . . 1 . . 2 13 . . . 7 4 Classes Destroyed 24 | 2 6 1 . . 3 3 . 5 . . . . . 1 . . 1 2 . . . . . Worker 21 | . . 1 . . 1 4 . 2 3 . . . . 2 . . 3 1 . . . 3 1 Builder 18 | . 1 . . . . 2 . . 4 . . . . 6 . . 1 2 . . . 1 1 Tunneler 7 | 2 . . . 1 1 . . . 1 . . . . 2 . . . . . . . . . Hauler 23 | . 2 . . . 5 4 . . . . . . . 7 . . . 2 . . . 1 2 Recycler 22 | 1 1 . . . 5 4 3 . 3 . . . . 1 . . . . . 1 1 2 . Mechanic 5 | . . . . . . 2 . . 2 . . . . . . . 1 . . . . . . Operator 15 | . 1 . . . . . . . . . 2 . . 1 . 9 . 1 . . . 1 . Drone 2 | . . . . . . . . . . . . . . . . . . 1 . 1 . . . Watcher 11 | . 1 . . . 3 1 . . 1 . . . . 1 1 . . . . . . . 3 Swarmer 36 | . 2 . . . 3 9 . . 6 . . . . 1 . . . 7 . . . 4 4 Grunt 43 | . 7 . . 1 12 16 . . . . . . . 1 . . 2 2 . . . . 2 Duelist 1 | . . . . . . 1 . . . . . . . . . . . . . . . . . Protector 2 | . . . . . . 2 . . . . . . . . . . . . . . . . . Sentry 15 | . . . . . 5 7 3 . . . . . . . . . . . . . . . . Demolisher 1 | . . . . . . . . . . . . . . . . . 1 . . . . . . Hunter 5 | . . . . . 1 . . . . . . . . 1 . . . 3 . . . . . Programmer 5 | . . . . . . . . . . . . . . . . . . 2 . . . 3 . Heavy 1 | . . . . . 1 . . . . . . . . . . . . . . . . . . Cetus Guard 1 | . . . . . . . . . . . . . . . 1 . . . . . . . . Enhanced Grunt 1 | . . . . . . . . . . . . . . . . . 1 . . . . . . Bolteater 2 | . . . . . . . . 2 . . . . . . . . . . . . . . . Federalist 2 | . . . . . . . . 2 . . . . . . . . . . . . . . . Guru 1 | . . . . . . . . 1 . . . . . . . . . . . . . . . Scrapper 4 | . . . . . . . . 4 . . . . . . . . . . . . . . . Elite 2 | . . . . . . . . 2 . . . . . . . . . . . . . . . Savage 1 | . . . . . . . . . . . . . . 1 . . . . . . . . . Best Kill Streak 12 | 2 3 1 . 1 9 12 1 9 7 . 1 . . 5 1 3 5 6 . 1 1 11 3 Combat Bots Only 9 | . 3 . . 1 8 9 1 9 3 . . . . 1 1 . 2 6 . 1 . 7 3 Max Kills in Single Turn 7 | 1 1 1 . 1 2 7 1 3 4 . 1 . . 5 1 1 4 6 . 1 1 3 2 Gunslinging . | . . . . . . . . . . . . . . . . . . . . . . . . Exploded 6 | . . . . . 2 5 . 3 3 . . . . 1 . . 2 6 . . . 3 2 Melee 1 | . . . . . . . . . 1 . . . . 1 . . . 1 . 1 . . 1 Uniques/NPCs Destroyed 1 | . . . . . . . . . . . . . . . 1 . . . . . . . . Revision 17 (-5/Cetus) Combat | -11 -10 -10 -10 -9 -8 -8 -8 -8 -6 -6 -6 -6 -5 -5 -5 -5 -5 -4 -4 -4 -3 -2 -1 -------- Run | Yrd Mat Min Exi Min Mat Sto Rec Scr Fac Was Fac DSF Fac Ext Cet Arc Hub Fac Was Fac Res Res Acc Hostile Shots Fired 821 | . 40 . . 3 77 94 6 107 26 . . 21 2 55 25 14 111 88 1 12 . 39 100 Missed 285 | . 9 . . 1 25 27 2 24 12 . . 11 . 24 2 4 28 46 1 5 . 19 45 Damage Taken 10069 | . 404 . . 23 885 898 54 1658 249 . . 171 48 630 490 199 1720 754 . 46 . 463 1377 Core 1153 | . 37 . . . 86 45 . 216 137 . . 18 . 78 59 19 61 101 . 25 . 50 221 Absorbed by Shields 1135 | . . . . . 105 120 8 . . . . . . 13 118 72 615 84 . . . . . Regen/Repaired (Parts) 1500 | . . . . . 111 379 . . . . 12 . 49 . 60 116 13 86 . . . 364 310 Core Remaining (%) 83 | 100 . . . 85 . . . 36 . . . 81 . . . . 78 . . 89 100 96 86 Volleys Fired 499 | 21 41 . . 8 70 74 10 31 1 . . . . 105 21 14 31 17 . 12 . 10 33 Largest 2 | 2 2 . . 2 2 2 2 2 1 . . . . 1 2 2 2 1 . 1 . 1 1 Hottest 136 | 60 136 . . 136 136 96 50 100 30 . . . . 53 88 88 88 53 . 61 . 120 120 Shots Fired 746 | 28 74 1 1 19 121 134 21 59 1 . . . . 105 38 24 45 19 . 12 . 11 33 Gun 319 | 28 2 . . . . 92 21 56 . . . . . 79 17 10 14 . . . . . . Cannon 351 | . 72 1 1 19 109 30 . . . . . . . 22 17 14 22 5 . 12 . 5 22 Launcher 75 | . . . . . 12 12 . 2 1 . . . . 4 4 . 9 14 . . . 6 11 Special 1 | . . . . . . . . 1 . . . . . . . . . . . . . . . Kinetic 526 | 21 1 . . . 91 122 21 56 . . . . . 101 34 24 36 5 . 12 . . 2 Thermal 136 | . 72 1 1 19 18 . . 1 . . . . . . . . . . . . . 5 19 Explosive 61 | . . . . . 12 . . . 1 . . . . 4 4 . 9 14 . . . 6 11 Electromagnetic 23 | 7 1 . . . . 12 . 2 . . . . . . . . . . . . . . 1 Robot Hit Streak 17 | 13 6 4 . 3 9 15 11 17 . . . . . 8 8 4 4 4 . 1 . 4 8 Robot Miss Streak 9 | 3 3 . 1 3 3 3 1 2 . . . . . 4 2 5 6 5 . 9 . 2 2 Penetration Max 2 | . . . . . . . . . . . . . . 2 1 . . . . . . . . Secondary Targets 3 | . . . . . . . . 3 . . . . . . . . . . . . . . . Max Gunslinging Chain 1 | . . . . . . . . 1 . . . . . . . . . . . . . . . Shots Hit Robots 611 | 21 38 1 14 9 84 102 19 46 23 2 2 . 2 99 26 31 15 31 . 9 2 15 20 Core Hits 379 | 8 15 1 . 3 49 73 8 25 12 2 1 . . 42 20 11 24 30 . 2 1 19 33 Critical Kills 7 | . 2 . . . 1 . . . . . . . . 4 . . . . . . . . . Critical Parts Destroyed 27 | . . . . . . 1 . 1 3 . . . . 14 5 . 2 . . . . . 1 Critical Strikes 51 | . 2 . . . 6 1 . 1 4 . . . . 23 7 . 2 3 . . . 1 1 Meltdown 3 | . 2 . . . 1 . . . . . . . . . . . . . . . . . . Destroy 27 | . . . . . . . . 1 . . . . . 18 6 . 2 . . . . . . Blast 6 | . . . . . 5 . . . . . . . . . 1 . . . . . . . . Smash 5 | . . . . . . 1 . . 3 . . . . . . . . . . . . . 1 Sever 9 | . . . . . . . . . . . . . . 5 . . . 3 . . . 1 . Impale 1 | . . . . . . . . . 1 . . . . . . . . . . . . . . Melee Attacks 338 | . . . 14 . 25 10 3 . 47 2 13 . 17 42 . 26 2 58 . 17 10 23 29 Impact 65 | . . . . . 25 10 3 . 17 . . . . . . . . . . . . . 10 Slashing 236 | . . . . . . . . . 10 2 13 . 17 42 . 23 2 58 . 17 10 23 19 Piercing 20 | . . . . . . . . . 20 . . . . . . . . . . . . . . Sneak Attacks 89 | . . . 13 . 5 6 2 . 16 . 1 . 2 11 . 18 . 7 . 2 1 3 2 Combat Hostiles . | . . . . . . . . . . . . . . . . . . . . . . . . Follow-up Attacks . | . . . . . . . . . . . . . . . . . . . . . . . . Damage Inflicted 28941 | 219 803 20 . 195 3141 3910 633 1182 1938 148 149 . 156 3208 865 1753 1559 4074 . 433 104 1731 2720 Guns 3102 | 219 15 . . . . 1150 289 702 . . . . . 346 136 132 113 . . . . . . Cannons 5240 | . 788 20 . 194 1981 564 . . . . . . . 420 393 176 182 31 . 74 . 41 376 Explosions 10828 | . . . . . 772 1610 . 468 381 . . . . 319 336 . 1264 2699 . . . 1097 1882 Melee 9746 | . . . . . 388 586 334 . 1557 148 149 . 156 2121 . 1445 . 1344 . 359 104 593 462 Ramming 13 | . . . . 1 . . 10 . . . . . . 2 . . . . . . . . . Kinetic 6584 | 123 . . . . 1714 1714 289 702 . . . . . 766 529 308 295 31 . 74 . . 39 Thermal 4064 | . 788 20 . 194 267 734 . 292 308 . . . . . . . . 901 . . . 41 519 Explosive 7265 | . . . . . 712 . . . 73 . . . . 319 336 . 1264 1798 . . . 1097 1666 Electromagnetic 1269 | 96 15 . . . 60 876 . 188 . . . . . . . . . . . . . . 34 Impact 2348 | . . . . . 388 586 334 . 825 . . . . . . . . . . . . . 215 Slashing 6762 | . . . . . . . . . 96 148 149 . 156 2121 . 1445 . 1344 . 359 104 593 247 Piercing 636 | . . . . . . . . . 636 . . . . . . . . . . . . . . Highest Corruption 33 | 1 3 3 3 3 . 1 2 . 3 3 3 3 . . 24 24 33 5 13 13 . 2 6 Average Corruption 5 | 1 2 3 3 3 . 1 1 . 1 3 3 3 . . 23 20 20 4 9 11 . 1 4 Corruption Purged 10 | . . . . . . . . . . . . . . . . 6 . . . 4 . . . Corruption Blocked . | . . . . . . . . . . . . . . . . . . . . . . . . Effects 342 | . 31 20 31 37 . 8 24 . 3 2 7 3 . . 30 46 31 32 4 27 . 4 2 Message Errors 88 | . 9 5 7 12 . 5 7 . 1 1 3 1 . . 7 7 10 8 . 3 . 2 . Matter Fused 83 | . 8 6 9 7 . 2 4 . 2 1 1 . . . 10 7 5 8 . 11 . . 2 Heat Flow Errors 42 | . 2 2 4 7 . 1 5 . . . 3 . . . 1 6 3 4 . 4 . . . Energy Discharges 42 | . 7 2 3 3 . . 3 . . . . 2 . . 1 10 3 5 . 3 . . . Parts Rejected 4 | . . . . . . . . . . . . . . . . . 2 . . 1 . 1 . Parts Fused 2 | . . 1 . . . . . . . . . . . . . 1 . . . . . . . Data Loss (minor) 29 | . 3 1 2 3 . . 2 . . . . . . . 5 5 3 4 1 . . . . Data Loss (major) 14 | . 1 1 2 2 . . 1 . . . . . . . 1 2 2 1 . 1 . . . Misfires 15 | . 1 1 1 3 . . 1 . . . . . . . 3 2 . 2 . . . 1 . Alerts 10 | . . 1 3 . . . 1 . . . . . . . 1 2 1 . . 1 . . . Misdirections 10 | . . . . . . . . . . . . . . . 1 3 . . 3 3 . . . Weapon Failures 3 | . . . . . . . . . . . . . . . . 1 2 . . . . . . Overload Shots . | . . . . . . . . . . . . . . . . . . . . . . . . Overflow Damage 3293 | . 1 . . 1 212 327 249 8 629 . 31 . 76 276 . 403 42 523 . 66 33 216 200 Projectiles 83 | . 1 . . 1 71 10 . . . . . . . . . . . . . . . . . Explosions 384 | . . . . . 7 7 . 8 12 . . . . . . . 42 180 . . . 84 44 Melee 2826 | . . . . . 134 310 249 . 617 . 31 . 76 276 . 403 . 343 . 66 33 132 156 Knockbacks 30 | . . . . . 13 5 2 . 5 . . . . 1 . . 1 1 . 1 . . 1 Impact 12 | . . . . . 2 2 2 . 5 . . . . . . . . . . . . . 1 Kinetic 18 | . . . . . 11 3 . . . . . . . 1 . . 1 1 . 1 . . . Secondary . | . . . . . . . . . . . . . . . . . . . . . . . . Self-Inflicted Damage 440 | . . . . . 31 89 . 220 . . . . . 27 . . 36 12 . . . . 25 Shots 20 | . . . . . 2 7 . 6 . . . . . 1 . . 2 1 . . . . 1 Rammed 3 | . . . . 1 . . 1 . . . . . . 1 . . . . . . . . . Targets Rammed 3 | . . . . 1 . . 1 . . . . . . 1 . . . . . . . . . Kicked . | . . . . . . . . . . . . . . . . . . . . . . . . Crushed . | . . . . . . . . . . . . . . . . . . . . . . . . Highest Temperature 363 | 40 363 150 228 312 234 169 188 156 1 . 251 71 . 36 297 324 249 212 . 339 289 176 163 Average Temperature 70 | 18 85 69 95 101 52 32 48 32 1 . 92 28 . 8 107 107 70 54 . 156 170 81 34 Received Heat Transfer 1820 | . 183 . . 12 296 277 6 407 12 . . 27 9 9 . . 404 79 . . . 27 72 Effects 5 | . . . . . . . . . . . . . . . 3 . . . . 2 . . . Interference 5 | . . . . . . . . . . . . . . . 3 . . . . 2 . . . Siege Activations . | . . . . . . . . . . . . . . . . . . . . . . . . Robots Corrupted 15 | . . . . . 3 5 3 . 4 . . . . . . . . . . . . . . Combat Hostiles 1 | . . . . . . 1 . . . . . . . . . . . . . . . . . Parts Fried 27 | . . . . . 5 12 3 . 6 . . . . . 1 . . . . . . . . Impact Corruptions 38 | . . . . . 5 8 6 . 15 . . . . . . . . . . . . . 4 Robots Melted 3 | . 2 . . . 1 . . . . . . . . . . . . . . . . . . Combat Hostiles 2 | . 1 . . . 1 . . . . . . . . . . . . . . . . . . Parts Melted 11 | . 7 . . . 1 1 . . . . . . . . . . 1 . . . . . 1 Heat Transferred 4458 | . 1406 37 . 333 481 696 . 359 200 . . . . . . . . 550 . . . 37 359 Parts Sabotaged . | . . . . . . . . . . . . . . . . . . . . . . . . Parts Stolen . | . . . . . . . . . . . . . . . . . . . . . . . . Parts Stripped . | . . . . . . . . . . . . . . . . . . . . . . . . Power Chain Reactions 9 | . . . . . . 5 . 4 . . . . . . . . . . . . . . . Alert | -11 -10 -10 -10 -9 -8 -8 -8 -8 -6 -6 -6 -6 -5 -5 -5 -5 -5 -4 -4 -4 -3 -2 -1 ------- Run | Yrd Mat Min Exi Min Mat Sto Rec Scr Fac Was Fac DSF Fac Ext Cet Arc Hub Fac Was Fac Res Res Acc Peak Influence 1121 | 15 189 17 . 53 520 978 499 . 179 10 104 15 89 621 385 417 595 1121 422 411 193 617 977 Initial 392 | . 9 17 . . . 211 370 . . 10 7 2 2 50 309 154 37 282 392 295 147 108 278 Average 232 | 9 44 8 . 7 217 592 223 . 85 10 46 4 58 368 318 266 430 295 404 305 171 289 415 Maximum Alert Level 4 | . . . . . 2 3 2 . . . . . . 2 1 2 2 4 2 2 . 2 3 Low Security (%) 53 | 100 100 100 . 100 56 . 46 . 100 100 100 100 100 19 16 18 7 49 . . 100 56 . Level 1 25 | . . . . . 11 33 44 . . . . . . 42 83 75 7 31 52 90 . 4 67 Level 2 16 | . . . . . 32 28 9 . . . . . . 37 . 5 85 7 47 9 . 39 23 Level 3 4 | . . . . . . 38 . . . . . . . . . . . 7 . . . . 8 Level 4 . | . . . . . . . . . . . . . . . . . . 3 . . . . . Level 5 . | . . . . . . . . . . . . . . . . . . . . . . . . High Security . | . . . . . . . . . . . . . . . . . . . . . . . . Max Security . | . . . . . . . . . . . . . . . . . . . . . . . . Sterilizations 1 | . . . . . . . . . . . . 1 . . . . . . . . . . . Squads Dispatched 58 | . 1 1 . . 4 10 . . 3 . 4 . 1 3 . . 5 14 . 3 . 2 7 Investigation 23 | . 1 . . . 3 3 . . 2 . 3 . 1 1 . . . 4 . 2 . . 3 Extermination 6 | . . . . . . . . . 1 . . . . . . . . 2 . 1 . 1 1 Reinforcement 15 | . . . . . 1 1 . . . . 1 . . 2 . . 2 5 . . . 1 2 Assault 9 | . . 1 . . . 3 . . . . . . . . . . 2 3 . . . . . Garrison 5 | . . . . . . 3 . . . . . . . . . . 1 . . . . . 1 Intercept . | . . . . . . . . . . . . . . . . . . . . . . . . Searches Triggered . | . . . . . . . . . . . . . . . . . . . . . . . . Construction Impeded 5 | . . . . . . . . . . . . . . 1 . . 1 2 . . . 1 . Haulers Reinforced . | . . . . . . . . . . . . . . . . . . . . . . . . Active Scanning Responses . | . . . . . . . . . . . . . . . . . . . . . . . . Cargo Convoy Interrupts 1 | . . . . . . . . . . . . . . . . . . 1 . . . . . Stealth | -11 -10 -10 -10 -9 -8 -8 -8 -8 -6 -6 -6 -6 -5 -5 -5 -5 -5 -4 -4 -4 -3 -2 -1 --------- Run | Yrd Mat Min Exi Min Mat Sto Rec Scr Fac Was Fac DSF Fac Ext Cet Arc Hub Fac Was Fac Res Res Acc Distress Signals 20 | . 1 . . . 3 2 . . 2 . . . . 2 1 . 2 1 . 3 . 1 2 Communications Jammed 26 | . . . . . . . . . . . . . . . . . . 2 . 2 . 18 4 Distress Signals 23 | . . . . . . . . . . . . . . . . . . 2 . . . 18 3 Times Spotted 366 | . 24 . . 2 29 45 4 12 21 . 2 7 2 42 10 21 27 49 5 10 1 19 34 Peak Tracking Total 17 | . 4 . . 1 5 9 1 7 7 . 1 5 1 4 5 2 8 12 5 4 1 11 17 Tactical Retreats 42 | . 1 . . . 4 6 . . 2 . . 1 . 5 1 . 2 9 . 3 . 2 6 Traps | -11 -10 -10 -10 -9 -8 -8 -8 -8 -6 -6 -6 -6 -5 -5 -5 -5 -5 -4 -4 -4 -3 -2 -1 ------- Run | Yrd Mat Min Exi Min Mat Sto Rec Scr Fac Was Fac DSF Fac Ext Cet Arc Hub Fac Was Fac Res Res Acc Traps Triggered 11 | . 1 . . . 3 1 . . 1 . 1 . . . . . . 4 . . . . . Indirectly . | . . . . . . . . . . . . . . . . . . . . . . . . Trap Hack Attempts . | . . . . . . . . . . . . . . . . . . . . . . . . Triggered . | . . . . . . . . . . . . . . . . . . . . . . . . Disarmed . | . . . . . . . . . . . . . . . . . . . . . . . . Reprogrammed 4 | . . . . . . . . . . . . . . . . . . . . . . 4 . Reused 3 | . . . . . . . . . . . . . . . . . . . . . . 3 . Traps Extracted . | . . . . . . . . . . . . . . . . . . . . . . . . Installed . | . . . . . . . . . . . . . . . . . . . . . . . . Triggered 4 | . . . . . . . . . . . . . . . . . . 1 . . . 3 . Machines | -11 -10 -10 -10 -9 -8 -8 -8 -8 -6 -6 -6 -6 -5 -5 -5 -5 -5 -4 -4 -4 -3 -2 -1 ---------- Run | Yrd Mat Min Exi Min Mat Sto Rec Scr Fac Was Fac DSF Fac Ext Cet Arc Hub Fac Was Fac Res Res Acc Machines Disabled 65 | . 2 . . . 8 9 . . 3 . . . . 2 . 3 7 27 . 1 . 1 2 Max in Single Turn 15 | . 1 . . . 2 1 . . 2 . . . . . . 1 3 15 . 1 . 1 1 Garrison Access 6 | . . . . . . 1 . . 1 . . . . . . . 1 1 . . . 1 1 Network Hub 2 | . . . . . . . . . . . . . . . . . 2 . . . . . . Energy Cycler 1 | . . . . . . . . . . . . . . . . . . . . . . . 1 Machines Repaired . | . . . . . . . . . . . . . . . . . . . . . . . . Machines Dismantled . | . . . . . . . . . . . . . . . . . . . . . . . . Machines Sabotaged . | . . . . . . . . . . . . . . . . . . . . . . . . Overloaded Fab Kills . | . . . . . . . . . . . . . . . . . . . . . . . . Hacking | -11 -10 -10 -10 -9 -8 -8 -8 -8 -6 -6 -6 -6 -5 -5 -5 -5 -5 -4 -4 -4 -3 -2 -1 --------- Run | Yrd Mat Min Exi Min Mat Sto Rec Scr Fac Was Fac DSF Fac Ext Cet Arc Hub Fac Was Fac Res Res Acc Machines Accessed 121 | . 11 . 2 . 11 11 13 1 11 . 5 . 9 12 2 . 1 9 . 4 2 8 9 Terminals 72 | . 8 . . . 8 7 6 . 6 . 3 . 5 11 2 . . 4 . 3 2 4 3 Fabricators 11 | . . . . . . . . . 1 . 2 . 1 . . . . 3 . 1 . 1 2 Repair Stations 11 | . 1 . . . 2 2 . . . . . . 2 . . . . 1 . . . 1 2 Recycling Units 15 | . 2 . . . 1 1 7 . 3 . . . . 1 . . . . . . . . . Scanalyzers 3 | . . . . . . . . . . . . . 1 . . . . . . . . 1 1 Garrison Access 6 | . . . . . . 1 . . 1 . . . . . . . 1 1 . . . 1 1 Total Hacks 395 | . 30 . 2 . 32 26 32 9 23 . 16 . 23 32 4 . 1 48 . 24 11 43 39 Successful 242 | . 14 . 2 . 13 17 22 9 7 . 13 . 16 23 3 . 1 25 . 13 9 30 25 Failed 151 | . 15 . . . 19 9 10 . 16 . 3 . 7 8 1 . . 23 . 11 2 13 14 Catastrophic 27 | . 4 . . . 3 1 2 . 5 . . . . . . . . 4 . 2 . 3 3 Database Lockouts 2 | . 1 . . . . . . . . . . . . 1 . . . . . . . . . Manual 227 | . 18 . 1 . 14 12 20 . 16 . 8 . 6 15 3 . . 35 . 20 9 32 18 Terminals 259 | . 20 . . . 22 16 18 . 16 . 10 . 12 25 4 . . 40 . 20 11 29 16 Fabricators 31 | . . . . . . . . . 1 . 6 . 2 . . . . 6 . 4 . 4 8 Repair Stations 42 | . 3 . . . 9 8 . . . . . . 4 . . . . 1 . . . 8 9 Recycling Units 34 | . 7 . . . 1 1 14 . 4 . . . . 7 . . . . . . . . . Scanalyzers 11 | . . . . . . . . . . . . . 5 . . . . . . . . 1 5 Garrison Access 7 | . . . . . . 1 . . 2 . . . . . . . 1 1 . . . 1 1 Terminal Hacks 106 | . 3 . 2 . 4 4 4 9 2 . 6 . 7 15 3 . . 14 . 8 8 11 6 Record 26 | . . . 1 . . . . 9 . . 1 . . 2 2 . . 1 . . 6 4 . Part Schematic 2 | . . . . . . . . . 1 . . . . . . . . 1 . . . . . Robot Analysis 3 | . 1 . . . . 1 1 . . . . . . . . . . . . . . . . Open Door 13 | . . . . . . 2 . . . . . . 1 8 1 . . . . . . . 1 Open DSF 2 | . . . . . . . . . . . 1 . 1 . . . . . . . . . . Level Access Points 6 | . . . . . . . . . . . . . 1 . . . . 1 . 1 1 1 1 Branch Access Points 6 | . . . . . . . 1 . . . . . 1 . . . . 1 . 1 . 1 1 Emergency Access Points 1 | . . . . . . . . . . . . . 1 . . . . . . . . . . Machine Index 1 | . . . . . . . 1 . . . . . . . . . . . . . . . . Terminal Index 5 | . . . . . 1 . . . . . . . . . . . . 1 . 1 1 1 . Fabricator Index 1 | . . . . . . . . . . . . . . . . . . . . 1 . . . Repair Station Index 1 | . . . . . . . . . . . . . . . . . . . . 1 . . . Locate Traps 1 | . . . . . . . . . . . . . 1 . . . . . . . . . . Reprogram Traps 1 | . . . . . . . . . . . . . . . . . . . . . . 1 . Transport Status 1 | . . . . . . . . . . . . . . . . . . 1 . . . . . Recall Investigation 4 | . . . . . . . . . . . . . . 1 . . . 2 . . . . 1 Recall Extermination 4 | . . . . . . . . . . . . . . . . . . 1 . 1 . 1 1 Recall Reinforcements 8 | . . . . . . . . . 1 . 2 . . 1 . . . 3 . . . . 1 Recall Assault 1 | . . . . . . . . . . . . . . 1 . . . . . . . . . Hauler Manifests 6 | . . . . . 1 . . . . . 1 . . 1 . . . 1 . 1 . 1 . Registered Components 1 | . . . . . . . . . . . 1 . . . . . . . . . . . . Registered Prototypes 3 | . . . . . . . . . . . . . 1 . . . . 1 . 1 . . . Zone Layout 8 | . 2 . . . 2 1 1 . . . . . . 1 . . . . . . . 1 . Derelict Proto ID Bank 1 | . . . 1 . . . . . . . . . . . . . . . . . . . . Fabricator Hacks 20 | . . . . . . . . . 1 . 5 . 1 . . . . 5 . 1 . 3 4 Network Status 5 | . . . . . . . . . 1 . . . 1 . . . . 1 . . . 1 1 Load Schematic 8 | . . . . . . . . . . . 2 . . . . . . 2 . 1 . 1 2 Build 7 | . . . . . . . . . . . 3 . . . . . . 2 . . . 1 1 Repair Station Hacks 30 | . 1 . . . 6 6 . . . . . . 3 . . . . . . . . 8 6 Scan Component 16 | . 1 . . . 4 3 . . . . . . 1 . . . . . . . . 4 3 Repair 13 | . . . . . 2 3 . . . . . . 1 . . . . . . . . 4 3 Refit 1 | . . . . . . . . . . . . . 1 . . . . . . . . . . Recycling Unit Hacks 12 | . 2 . . . 1 . 5 . 2 . . . . 2 . . . . . . . . . Retrieve Matter 2 | . 1 . . . . . . . . . . . . 1 . . . . . . . . . Retrieve Components 10 | . 1 . . . 1 . 5 . 2 . . . . 1 . . . . . . . . . Scanalyzer 8 | . . . . . . . . . . . . . 3 . . . . . . . . 1 4 Insert Component 4 | . . . . . . . . . . . . . 1 . . . . . . . . 1 2 Analyze 4 | . . . . . . . . . . . . . 2 . . . . . . . . . 2 Garrison Access Hacks 6 | . . . . . . 1 . . 1 . . . . . . . 1 1 . . . 1 1 Seal Access 6 | . . . . . . 1 . . 1 . . . . . . . 1 1 . . . 1 1 Unauthorized Hacks 58 | . 8 . . . 2 6 13 . . . 2 . 2 6 . . . 4 . 4 1 6 4 Terminals 38 | . 6 . . . 2 5 7 . . . 2 . 2 2 . . . 2 . 3 1 5 1 Track 1 | . . . . . . . . . . . . . . . . . . . . . . 1 . Assimilate 3 | . . . . . . . . . . . 1 . . . . . . . . 1 . 1 . Botnet 19 | . . . . . 2 2 1 . . . 1 . 2 2 . . . 2 . 2 1 3 1 Skim 15 | . 6 . . . . 3 6 . . . . . . . . . . . . . . . . Fabricators 5 | . . . . . . . . . . . . . . . . . . 1 . 1 . 1 2 Prioritize 4 | . . . . . . . . . . . . . . . . . . 1 . . . 1 2 Recompile 1 | . . . . . . . . . . . . . . . . . . . . 1 . . . Repair Stations 2 | . . . . . . . . . . . . . . . . . . 1 . . . . 1 Patch 2 | . . . . . . . . . . . . . . . . . . 1 . . . . 1 Recycling Units 13 | . 2 . . . . 1 6 . . . . . . 4 . . . . . . . . . Monitor 1 | . . . . . . . . . . . . . . 1 . . . . . . . . . Reject 2 | . 1 . . . . . . . . . . . . 1 . . . . . . . . . Recyclers 1 | . . . . . . . . . . . . . . 1 . . . . . . . . . Mask 2 | . 1 . . . . . . . . . . . . 1 . . . . . . . . . Tunnel 7 | . . . . . . 1 6 . . . . . . . . . . . . . . . . Scanalyzers . | . . . . . . . . . . . . . . . . . . . . . . . . Garrison Access . | . . . . . . . . . . . . . . . . . . . . . . . . Data Cores Recovered 3 | . 1 . . . . . . . 1 . 1 . . . . . . . . . . . . Used 3 | . 1 . . . . . . . 1 . 1 . . . . . . . . . . . . Hacking Detections 81 | . 9 . . . 10 8 6 . 8 . 3 . 6 6 2 . . 5 . 3 2 6 7 Full Trace Events 20 | . 5 . . . 1 2 1 . 2 . 2 . 1 . . . . 3 . 1 . . 2 Feedback Events 2 | . . . . . . . 1 . 1 . . . . . . . . . . . . . . Corruption 2 | . . . . . . . 1 . 1 . . . . . . . . . . . . . . Feedback Blocked . | . . . . . . . . . . . . . . . . . . . . . . . . Robot Schematics Acquired . | . . . . . . . . . . . . . . . . . . . . . . . . Robots Built 4 | . . . . . . . . . . . 4 . . . . . . . . . . . . Authchips . | . . . . . . . . . . . . . . . . . . . . . . . . Time 125 | . . . . . . . . . . . 125 . . . . . . . . . . . . Total Robot Build Rating 15 | . . . . . . . . . . . 15 . . . . . . . . . . . . Part Schematics Acquired 3 | . . . . . . . . . 1 . . . . . . . . 1 . . . . 1 Parts Built 4 | . . . . . . . . . . . . . . . . . . 2 . . . 1 1 Authchips 1 | . . . . . . . . . . . . . . . . . . . . . . 1 . Time 357 | . . . . . . . . . . . 67 . . . . . . 211 . . . 42 37 Total Part Build Rating 27 | . . . . . . . . . . . . . . . . . . 12 . . . 6 9 Parts Repaired 13 | . . . . . 2 3 . . . . . . 1 . . . . . . . . 4 3 Time 357 | . . . . . 52 108 . . . . . . 34 . . . . . . . . 72 91 Parts Recycled . | . . . . . . . . . . . . . . . . . . . . . . . . Recycled Matter . | . . . . . . . . . . . . . . . . . . . . . . . . Retrieved Matter . | . . . . . . . . . . . . . . . . . . . . . . . . Retrieved Components 38 | . . . . . 10 . 16 . 12 . . . . . . . . . . . . . . Parts Scanalyzed 2 | . . . . . . . . . . . . . 1 . . . . . . . . . 1 Part Schematics Acquired 1 | . . . . . . . . . . . . . . . . . . . . . . . 1 Parts Damaged . | . . . . . . . . . . . . . . . . . . . . . . . . Bothacking | -11 -10 -10 -10 -9 -8 -8 -8 -8 -6 -6 -6 -6 -5 -5 -5 -5 -5 -4 -4 -4 -3 -2 -1 ------------ Run | Yrd Mat Min Exi Min Mat Sto Rec Scr Fac Was Fac DSF Fac Ext Cet Arc Hub Fac Was Fac Res Res Acc Used RIF Installer . | . . . . . . . . . . . . . . . . . . . . . . . . Robots Hacked 14 | . . . 12 . . . . . . . . . . . . 2 . . . . . . . Non-combat 4 | . . . 3 . . . . . . . . . . . . 1 . . . . . . . Combat 10 | . . . 9 . . . . . . . . . . . . 1 . . . . . . . Robot Hacks Applied 15 | . . . 12 . . . . . . . . . . . . 3 . . . . . . . parse_system 14 | . . . 12 . . . . . . . . . . . . 2 . . . . . . . check_alert 1 | . . . . . . . . . . . . . . . . 1 . . . . . . . Relay Couplers Released . | . . . . . . . . . . . . . . . . . . . . . . . . Fabnet Peak Effective % . | . . . . . . . . . . . . . . . . . . . . . . . . Robots Rewired 10 | . . . . . . . . . . . . . . 10 . . . . . . . . . Allies Hacked 2 | . . . . . . . . . . . . . . 2 . . . . . . . . . Hacks Repelled . | . . . . . . . . . . . . . . . . . . . . . . . . Allies | -11 -10 -10 -10 -9 -8 -8 -8 -8 -6 -6 -6 -6 -5 -5 -5 -5 -5 -4 -4 -4 -3 -2 -1 -------- Run | Yrd Mat Min Exi Min Mat Sto Rec Scr Fac Was Fac DSF Fac Ext Cet Arc Hub Fac Was Fac Res Res Acc Total Allies 37 | . . 3 . . . 2 . . . . 4 . . 21 5 . . . . 1 . 1 . Largest Group 8 | . . 3 3 1 . 2 . . . . 4 4 . 8 6 5 5 . . 1 . 1 . Highest-Rated Group 639 | . . 78 78 31 . 62 . . . . 83 83 . 333 639 480 480 . . 45 . 45 . Highest-Rated Ally 159 | . . 31 31 31 . 31 . . . . 23 23 . 159 159 96 96 . . 45 . 45 . Total Orders 53 | . . . . . . . . . 3 . 2 . . 14 11 10 9 . . 4 . . . STAY 25 | . . . . . . . . . . . . . . 6 8 7 3 . . 1 . . . ROAM 1 | . . . . . . . . . . . . . . 1 . . . . . . . . . FOLLOW 24 | . . . . . . . . . 1 . 1 . . 7 3 3 6 . . 3 . . . AID 1 | . . . . . . . . . . . 1 . . . . . . . . . . . . EXPLORE 2 | . . . . . . . . . 2 . . . . . . . . . . . . . . Ally Attacks 353 | . . . . 10 . 4 . . . . . 1 . 222 47 30 39 . . . . . . Total Damage 8040 | . . . . 147 . 43 . . . . . 45 . 3692 1493 1232 1388 . . . . . . Kills 58 | . . . . 2 . . . . . . . . . 35 8 4 9 . . . . . . Allies Corrupted . | . . . . . . . . . . . . . . . . . . . . . . . . Allies Melted 1 | . . . . . . . . . . . . . . . . . 1 . . . . . . Intel | -11 -10 -10 -10 -9 -8 -8 -8 -8 -6 -6 -6 -6 -5 -5 -5 -5 -5 -4 -4 -4 -3 -2 -1 ------- Run | Yrd Mat Min Exi Min Mat Sto Rec Scr Fac Was Fac DSF Fac Ext Cet Arc Hub Fac Was Fac Res Res Acc Robot Analysis Total 3 | . 1 . . . . 1 1 . . . . . . . . . . . . . . . . Derelict Logs Recovered 2 | . . 1 . 1 . . . . . . . . . . . . . . . . . . . Drone Launches 2 | . . . . . . . . . 2 . . . . . . . . . . . . . . Drone Recoveries . | . . . . . . . . . . . . . . . . . . . . . . . . Exploration | -11 -10 -10 -10 -9 -8 -8 -8 -8 -6 -6 -6 -6 -5 -5 -5 -5 -5 -4 -4 -4 -3 -2 -1 ------------- Run | Yrd Mat Min Exi Min Mat Sto Rec Scr Fac Was Fac DSF Fac Ext Cet Arc Hub Fac Was Fac Res Res Acc Turns Passed 32605 | 140 2879 999 1878 2175 3609 2170 2226 4844 1206 237 476 100 371 2926 707 907 634 1752 36 707 166 533 927 Spaces Moved 20249 | 46 1011 308 576 594 1222 751 915 1994 1365 403 458 222 504 2401 342 458 323 2118 97 1040 311 922 1868 Core 303 | . . . . . . . . . . 146 138 . . 12 . . . 7 . . . . . Treads 9199 | . 838 308 576 594 1222 751 915 1994 . . . . . 885 342 450 323 1 . . . . . Legs 219 | 46 173 . . . . . . . . . . . . . . . . . . . . . . Wheels 101 | . . . . . . . . . 101 . . . . . . . . . . . . . . Hover 714 | . . . . . . . . . 675 . 38 . . . . . . 1 . . . . . Flight 9713 | . . . . . . . . . 589 257 282 222 504 1504 . 8 . 2109 97 1040 311 922 1868 Fastest Speed 6 | 120 120 320 320 320 235 236 237 237 24 27 27 27 32 32 160 34 160 32 32 32 29 28 6 Average Speed 130 | 120 248 320 320 320 236 236 237 237 59 53 53 28 32 82 160 160 160 51 32 33 29 28 23 Slowest Speed 550 | 120 320 320 320 320 240 241 237 241 155 100 107 34 32 550 240 240 160 274 32 34 31 29 26 Overloaded Moves 90 | . . . . . . . . . . . . . . . . . . . . . . . 90 Propulsion Burnouts . | . . . . . . . . . . . . . . . . . . . . . . . . Robots Hopped 67 | . . . . . . . . . 3 . 1 2 . 11 . . . 16 . 6 3 11 14 Cave-ins Triggered . | . . . . . . . . . . . . . . . . . . . . . . . . Exploration Rate (%) 60 | 4 100 82 91 87 84 75 99 60 38 96 12 96 15 96 90 98 40 44 69 12 8 28 35 Regions Visited 23 Branch Regions 10 Pre-discovered Areas 11 | . . . 1 . . 1 8 1 . . . . . . . . . . . . . . . Known Exits Taken 9 | . . . . . 1 . 1 1 . . 1 . 1 . . . 1 . . 1 1 1 . Unknown Exits Taken 9 | 1 1 1 1 1 . 1 . . . . . . . 1 1 1 . . . . . . . Scrap Searched 12 | . . 1 . 3 . . . 8 . . . . . . . . . . . . . . . Spaces Dug 211 | . . . . . 16 1 . . 48 . 11 . 14 22 . . 22 19 . 10 8 11 29 Terrain Destroyed 787 | . . . . . 73 27 . 16 48 . 11 . 14 58 80 2 82 124 . 19 8 64 161 Melee 113 | . . . . . 14 1 . . 11 . 11 . 14 1 . . 2 19 . 5 8 8 19 Projectile 82 | . . . . . 20 7 . . . . . . . 3 4 2 11 4 . 14 . 4 13 AOE 589 | . . . . . 39 19 . 16 37 . . . . 51 76 . 69 101 . . . 52 129 Terrain Rammed . | . . . . . . . . . . . . . . . . . . . . . . . . Walls Destroyed . | . . . . . . . . . . . . . . . . . . . . . . . . Machines Disabled . | . . . . . . . . . . . . . . . . . . . . . . . . Actions | -11 -10 -10 -10 -9 -8 -8 -8 -8 -6 -6 -6 -6 -5 -5 -5 -5 -5 -4 -4 -4 -3 -2 -1 --------- Run | Yrd Mat Min Exi Min Mat Sto Rec Scr Fac Was Fac DSF Fac Ext Cet Arc Hub Fac Was Fac Res Res Acc Total 25244 | 107 1311 323 610 851 1784 1035 956 2076 1702 420 665 259 687 3166 470 575 383 2648 101 1358 366 1126 2265 Wait 3195 | 37 212 9 . 234 303 124 13 4 189 14 178 10 139 524 63 19 8 357 . 279 31 143 305 Move 20103 | 45 1010 307 575 593 1221 750 914 1993 1360 402 455 217 503 2380 341 457 322 2089 96 1029 304 901 1839 Hop 57 | . . . . . . . . . 2 . 1 2 . 9 . . . 13 . 4 3 9 14 Pick Up 181 | 1 16 6 6 1 37 11 3 15 8 . 2 3 5 13 8 15 2 11 . 3 2 5 8 Fast Attach 167 | 1 4 . 3 3 14 12 2 5 20 . 5 4 6 14 9 9 3 26 2 4 6 10 5 Attach 78 | 1 3 . 3 . 5 . . 2 14 1 . 1 5 4 . 6 3 13 . 1 2 4 10 Detach 64 | 1 2 . 1 1 4 . . . 16 . 1 1 5 7 1 7 1 7 1 2 1 2 3 Swap 227 | . 10 1 . 5 52 28 5 10 6 1 4 8 1 20 7 9 10 25 . 2 1 10 12 Drop 295 | . 13 . 8 5 53 26 5 16 39 . 6 13 6 10 20 13 1 32 2 5 6 9 7 Fire 499 | 21 41 . . 8 70 74 10 31 1 . . . . 105 21 14 31 17 . 12 . 10 33 Melee 338 | . . . 14 . 25 10 3 . 47 2 13 . 17 42 . 26 2 58 . 17 10 23 29 Ram . | . . . . . . . . . . . . . . . . . . . . . . . . Kick . | . . . . . . . . . . . . . . . . . . . . . . . . Crush 3 | . . . . 1 . . 1 . . . . . . 1 . . . . . . . . . Escape Stasis . | . . . . . . . . . . . . . . . . . . . . . . . . Rewire 37 | . . . . . . . . . . . . . . 37 . . . . . . . . . Trap . | . . . . . . . . . . . . . . . . . . . . . . . . Miscellaneous . | . . . . . . . . . . . . . . . . . . . . . . . . Route ------- -11/Scrapyard -10/Materials (discovered 6 exits: [*Mat x3] / [*Min x2] / [*Sub]) -10/Mines (discovered 3 exits: [*Mat x2] / *Exi) -10/Exiles -9/Mines (discovered 2 exits: *Mat x2) -8/Materials (discovered 5 exits: [*Fac x3] / *Sto x2) -8/Storage (discovered 2 exits: [*Fac] / *Rec) -8/Recycling (discovered 2 exits: *Fac / *Scr) -8/Scraptown (discovered 2 exits: *Fac x2) -6/Factory (discovered 3 exits: Fac / *Low x2) -6/Waste -6/Factory -6/DSF -5/Factory (discovered 8 exits: Fac x4 / Upp x2 / *Ext x2) -5/Extension (discovered 3 exits: *Fac x2 / *Cet) -5/Cetus (discovered 2 exits: *Fac / *Arc) -5/Archives (discovered 3 exits: *Fac / *Hub x2) -5/Hub_04(d) (discovered 2 exits: *Fac x2) -4/Factory (discovered 6 exits: Res x4 / Upp x2) -4/Waste -4/Factory (discovered 6 exits: *Res x4 / Upp x2) -3/Research (discovered 3 exits: *Res x3) -2/Research (discovered 5 exits: *Acc x3 / Tes x2) -1/Access (discovered 2 exits: *Sur / Com) To Epsilon Eridani History --------- Turn | Location | Event 1 | -11/Scrapyard | Discovered new exit (range 1) 141 | -11/Scrapyard | Entered Materials 312 | -10/Materials | Build established: Mutant 343 | -10/Materials | Discovered new exit (range 3) 415 | -10/Materials | Discovered new exit (range 10) 495 | -10/Materials | Discovered new exit (range 15) 581 | -10/Materials | Central database locked down 1119 | -10/Materials | Discovered new exit (range 4) 1359 | -10/Materials | Discovered new exit (range 14) 1631 | -10/Materials | Discovered new exit (range 5) 3020 | -10/Materials | Entered Mines 3024 | -10/Mines | Discovered new exit (range 8) 3398 | -10/Mines | Discovered new exit (range 10) 3943 | -10/Mines | Met a Derelict testing a Signal Generator 3968 | -10/Mines | Found Signal Generator 3997 | -10/Mines | Deemed a non-threat by the Exiles lab entrance 3997 | -10/Mines | Discovered new exit (range 5) 4019 | -10/Mines | Entered Exiles 4019 | -10/Exiles | Accompanied by 3 allies 4049 | -10/Exiles | Led the pair of lost Derelicts to a safe place 4099 | -10/Exiles | Met 8R-AWN 4151 | -10/Exiles | Met EX-HEX 4240 | -10/Exiles | Met EX-BIN 4275 | -10/Exiles | Aligned with FarCom system 4279 | -10/Exiles | Given EX-Vault access code 4352 | -10/Exiles | Opened EX-Vault 4372 | -10/Exiles | Found Cloak of Protection 4380 | -10/Exiles | Found Skeleton Box 4390 | -10/Exiles | Found Deploy-a-Sentry 4456 | -10/Exiles | Warned to stay clear of 0b10 Research branches 4562 | -10/Exiles | Learned location of Zion (-7) 4575 | -10/Exiles | Met EX-DEC 5398 | -10/Exiles | Visited The Gauntlet 5859 | -10/Exiles | Discovered new exit (range 12) 5897 | -10/Exiles | Left Exiles lab with Skeleton Box 5897 | -10/Exiles | Entered Mines 5897 | -9/Mines | Accompanied by 1 ally 7528 | -9/Mines | Build established: Skirmisher 7815 | -9/Mines | Learned Materials emergency access door positions 7822 | -9/Mines | Discovered new exit (range 10) 8010 | -9/Mines | Discovered new exit (range 13) 8072 | -9/Mines | Entered Materials 8072 | -8/Materials | Evolved 4 slots: Propulsion x2, Utility x2 8073 | -8/Materials | Identified exit to Storage 8714 | -8/Materials | Discovered new exit (range 8) 8870 | -8/Materials | Repaired Lgt. Treads 8986 | -8/Materials | Discovered new exit (range 13) 9232 | -8/Materials | Repaired Lgt. Treads 9247 | -8/Materials | Build established: Assassin 9847 | -8/Materials | Discovered exit to Storage (range 15) 10118 | -8/Materials | Destroyed 8 combat bots 10171 | -8/Materials | Discovered new exit (range 15) 10376 | -8/Materials | Build established: Mutant 11681 | -8/Materials | Entered Storage 12144 | -8/Storage | Repaired Imp. Treads 12188 | -8/Storage | Repaired Hrd. Medium Armor Plating 12413 | -8/Storage | Garrison activated, responded to threat 12484 | -8/Storage | Used back door to open Recycling access 12484 | -8/Storage | Discovered new exit (range 5) 12596 | -8/Storage | Met a pair of Derelict thieves 12672 | -8/Storage | Destroyed 9 combat bots 12770 | -8/Storage | Discovered new exit (range 15) 13208 | -8/Storage | Repaired Adv. Treads 13281 | -8/Storage | First assault squad dispatched 13851 | -8/Storage | Entered Recycling 14514 | -8/Recycling | Identified exit to Factory 14605 | -8/Recycling | Learned location of 1 exit from Storage 14607 | -8/Recycling | Identified exit to Scraptown 14616 | -8/Recycling | Learned 2 Storage zone layouts 14634 | -8/Recycling | Learned 4 Lower Caves zone layouts 15286 | -8/Recycling | Scanned before Scraplab entrance 16050 | -8/Recycling | Entered Scraplab 16077 | -8/Recycling | Entered Scraptown 16077 | -8/Scraptown | System corruption cleaned by C-Scrubber 17248 | -8/Scraptown | Visited Bundlers 17421 | -8/Scraptown | Visited Awakened 17481 | -8/Scraptown | Visited CR-KLE's Repair Center 17973 | -8/Scraptown | Heard Great Nut preacher, LISTEN AND RECITE! 18025 | -8/Scraptown | Visited Junk Repository 18237 | -8/Scraptown | Visited Science Testing Area 18310 | -8/Scraptown | Turned away by UFD registrar 20760 | -8/Scraptown | Attacked by Scraptown defenders 20889 | -8/Scraptown | Destroyed 9 combat bots 20893 | -8/Scraptown | Lost 4 parts (1p1n1u1w) 20912 | -8/Scraptown | Core integrity fell below 50% 20921 | -8/Scraptown | Entered Factory 20921 | -6/Factory | Evolved 4 slots: Power x1, Propulsion x1, Utility x2 20922 | -6/Factory | Identified exit to Factory 20922 | -6/Factory | Identified exit to Lower Caves 21137 | -6/Factory | Spotted B-75 Beast 21210 | -6/Factory | Build established: Hacker-Scout 21800 | -6/Factory | Build established: Scavenger-Scout 22127 | -6/Factory | Manually triggered Chute Trap 22127 | -6/Factory | Sucked down chute 22127 | -6/Factory | Entered Waste 22127 | -6/Waste | The area was eerily silent 22183 | -6/Waste | Discovered new exit (range 12) 22364 | -6/Waste | Entered Factory 22741 | -6/Factory | Fabricated B-48 Gladiator (x3) 22747 | -6/Factory | Fabricated M-28 Smith (x1) 22802 | -6/Factory | Identified exit to DSF 22840 | -6/Factory | Entered DSF 22840 | -6/DSF | Encountered a pitched battle between 0b10 and Warlord forces 22840 | -6/DSF | Accompanied by 4 allies 22881 | -6/DSF | Sterilization system engaged 22901 | -6/DSF | Ambient heat levels rising (+10) 22910 | -6/DSF | Discovered exit to Factory (range 19) 22916 | -6/DSF | Ambient heat levels rising (+10) 22931 | -6/DSF | Ambient heat levels rising (+10) 22939 | -6/DSF | Lost 18 allies 22940 | -6/DSF | Entered Factory 22940 | -5/Factory | Evolved 2 slots: Utility x2 23137 | -5/Factory | Build established: Hacker-Scout 23158 | -5/Factory | Identified exit to Factory 23158 | -5/Factory | Identified exit to Upper Caves 23158 | -5/Factory | Identified exit to Extension 23264 | -5/Factory | Repaired Impulse Thruster Array 23311 | -5/Factory | Entered Extension 23336 | -5/Extension | Rescued a captive Derelict 23336 | -5/Extension | Rescued a captive Derelict 23505 | -5/Extension | Central database locked down 23523 | -5/Extension | Rescued a captive Derelict 23659 | -5/Extension | Spotted B-75 Beast 23747 | -5/Extension | Rescued a captive Derelict 23747 | -5/Extension | Rescued a captive Derelict 23782 | -5/Extension | Rescued a captive Derelict 23783 | -5/Extension | Rescued a captive Derelict 23911 | -5/Extension | Disrupted transfer network 23987 | -5/Extension | Allies destroyed B-75 Beast 24004 | -5/Extension | Spotted B-75 Beast 24030 | -5/Extension | P-70 Sage assimilated allied WQ-81S(b) 24038 | -5/Extension | Allies destroyed B-75 Beast 24042 | -5/Extension | Discovered exit to Factory (range 20) 24077 | -5/Extension | Remotely autohacked Sealed Heavy Doors 24148 | -5/Extension | Discovered new exit (range 22) 24149 | -5/Extension | Discovered exit to Factory (range 21) 24484 | -5/Extension | Lost 3 allies 24894 | -5/Extension | Build established: Hacker-Mutant 24928 | -5/Extension | Rescued A7 24980 | -5/Extension | Rescued a captive Derelict 25291 | -5/Extension | Rescued a captive Derelict 25520 | -5/Extension | Rescued a captive Derelict 25596 | -5/Extension | Lost 3 allies 26237 | -5/Extension | Entered Cetus 26237 | -5/Cetus | Accompanied by 4 allies (A7) 26242 | -5/Cetus | Acquired a Cetus Manufacturing Module code from A7 26254 | -5/Cetus | Spotted Cetus Guard 26254 | -5/Cetus | Spotted Cetus Guard 26263 | -5/Cetus | Spotted Cetus Guard 26264 | -5/Cetus | Spotted Cetus Guard 26274 | -5/Cetus | Allies destroyed Cetus Guard 26280 | -5/Cetus | Allies destroyed Cetus Guard 26293 | -5/Cetus | Destroyed Cetus Guard 26302 | -5/Cetus | Lost 3 allies 26303 | -5/Cetus | Allies destroyed Cetus Guard 26339 | -5/Cetus | System corruption reached 10% 26437 | -5/Cetus | Started Cetus Manufacturing Module 26447 | -5/Cetus | Escorted A7 to Cetus Mainframe 26462 | -5/Cetus | Manufactured an Enhanced Grunt 26487 | -5/Cetus | Manufactured an Enhanced Grunt 26512 | -5/Cetus | Manufactured an Enhanced Grunt 26537 | -5/Cetus | Manufactured an Enhanced Grunt 26562 | -5/Cetus | Manufactured an Enhanced Grunt 26578 | -5/Cetus | Discovered new exit (range 21) 26693 | -5/Cetus | Spotted Cetus Guard 26693 | -5/Cetus | Spotted Cetus Guard 26693 | -5/Cetus | Spotted Cetus Guard 26693 | -5/Cetus | Spotted Cetus Guard 26773 | -5/Cetus | Allies destroyed Cetus Guard 26779 | -5/Cetus | Allies destroyed Cetus Guard 26780 | -5/Cetus | Allies destroyed Cetus Guard 26789 | -5/Cetus | Allies destroyed Cetus Guard 26803 | -5/Cetus | Discovered exit to Factory (range 22) 26824 | -5/Cetus | Found Prototype Protection 26824 | -5/Cetus | Identified Med. Regenerative Plating 26826 | -5/Cetus | Extracted ID and sensor layout for unrecognized location from A7's data core 26837 | -5/Cetus | Met Revision 17 26865 | -5/Cetus | Destroyed Revision 17 26944 | -5/Cetus | Entered Archives 26944 | -5/Archives | Accompanied by 5 allies 27098 | -5/Archives | Discovered new exit (range 22) 27106 | -5/Archives | Unable to access archive contents 27130 | -5/Archives | Unable to access archive contents 27136 | -5/Archives | Discovered exit to Factory (range 16) 27271 | -5/Archives | Build established: Scavenger-Mutant 27278 | -5/Archives | Discovered new exit (range 15) 27851 | -5/Archives | Entered Hub_04(d) 27851 | -5/Hub_04(d) | Accompanied by 5 allies 27895 | -5/Hub_04(d) | Garrison activated, responded to threat 28103 | -5/Hub_04(d) | Found Imp. Powered Armor 28151 | -5/Hub_04(d) | First assault squad dispatched 28231 | -5/Hub_04(d) | Network Hub disabled 28235 | -5/Hub_04(d) | Lost 4 allies 28236 | -5/Hub_04(d) | Network Hub disabled 28299 | -5/Hub_04(d) | Spotted Lightning 28440 | -5/Hub_04(d) | System corruption reached 30% 28460 | -5/Hub_04(d) | Discovered exit to Factory (range 15) 28462 | -5/Hub_04(d) | Discovered exit to Factory (range 22) 28485 | -5/Hub_04(d) | Entered Factory 28485 | -4/Factory | Evolved 2 slots: Utility x2 28764 | -4/Factory | Build established: Scavenger-Assassin 29259 | -4/Factory | Cargo convoy interrupted 29377 | -4/Factory | Found Prototype Device 29377 | -4/Factory | Identified Exp. Actuator Array 29399 | -4/Factory | Found PL-3XN's Ring of Power 29675 | -4/Factory | Identified exit to Upper Caves 29675 | -4/Factory | Identified exit to Research 29826 | -4/Factory | Spotted B-86 Titan 29985 | -4/Factory | First assault squad dispatched 30182 | -4/Factory | Fabricated Cld. Nuclear Pulse Thruster? 30200 | -4/Factory | Fabricated Cld. Nuclear Pulse Thruster? 30237 | -4/Factory | Sucked down chute 30237 | -4/Factory | Entered Waste 30239 | -4/Waste | Found Prototype Launcher 30239 | -4/Waste | Identified Ragnarok Missile Launcher 30249 | -4/Waste | Spotted C-40 Crusher 30249 | -4/Waste | Spotted C-40 Crusher 30252 | -4/Waste | EMP discharged 30252 | -4/Waste | System corruption reached 10% 30254 | -4/Waste | Spotted C-40 Crusher 30259 | -4/Waste | Spotted C-40 Crusher 30261 | -4/Waste | Spotted C-40 Crusher 30267 | -4/Waste | Discovered new exit (range 14) 30273 | -4/Waste | Entered Factory 30279 | -4/Factory | Discovered exit to Research (range 3) 30319 | -4/Factory | Build established: Hacker-Scout 30608 | -4/Factory | Spotted B-86 Titan 30980 | -4/Factory | Entered Research 30980 | -3/Research | Evolved 2 slots: Propulsion x1, Utility x1 30985 | -3/Research | Identified exit to Research 31146 | -3/Research | Entered another Research area 31146 | -2/Research | Evolved 2 slots: Utility x2 31168 | -2/Research | Identified exit to Access 31168 | -2/Research | Identified exit to Testing 31271 | -2/Research | Repaired Broken Imp. Transmission Jammer 31289 | -2/Research | Repaired Lrn. Missile Launcher 31306 | -2/Research | Repaired Lgt. Angular Momentum Engine 31330 | -2/Research | Repaired Ripper 31492 | -2/Research | Destroyed 7 combat bots 31642 | -2/Research | Build established: Wizard-Ninja 31662 | -2/Research | Fabricated Cld. Nuclear Pulse Thruster (x1) 31679 | -2/Research | Entered Access 31679 | -1/Access | Evolved 2 slots: Propulsion x1, Utility x1 31802 | -1/Access | Repaired Imp. Transmission Jammer 31852 | -1/Access | Repaired Mni. Fusion Reactor 32045 | -1/Access | Fabricated Cld. Q-thruster (x1) 32109 | -1/Access | Repaired Ripper? 32295 | -1/Access | Identified exit to Surface 32295 | -1/Access | Identified exit to Command 32548 | -1/Access | Lost 3 parts (1p1n1u) 32549 | -1/Access | Garrison activated, responded to threat 32581 | -1/Access | Energy Cycler disabled 32606 | *** | Escaped! Last Messages --------------- Recalled extermination squad 6YYSGLML1N. >>Recall(Investigation) Establishing remote squad link... Recalled investigation squad YFRZW53WEX. 32563_ ALERT: Suspicious activity at Terminal A012. Dispatching Investigation squad. 32568_ Acquired Field Propulsion Array. 32569_ K-01 Serf cleans the Terminal. 32570_ Dropped CPS Tube. 32571_ Acquired Field Propulsion Array. 32581_ ALERT: Power surge detected, dispatching additional patrols. 32581_ Energy Cycler explodes. 32581_ Destroyed Imp. Antigrav System. 32589_ The Access Shell folds into the floor. 32590_ Connecting with Terminal... 32592_ System corrupted: Matter fused (-6). 32593_ Lrn. Missile Launcher destroyed. 32593_ Knocked back. [Achievement: Overachiever] Map ----- +----------------------------------------------------+ | ##????????????????????????????????????????????? | | ##????????????????????????????????????????????? | | # ????????????????????????????????????????????? | | # ????????????????????????????????????????????? | | " # ????????????????????????????????????????????? | | # ????????????????????????????????????????????? | | # ????????????????????????????????????????????? | | # ????????????????????????????????????????????? | | # ????????????????????????????????????????????? | | # ##############################??????? | | #+######+##################################??????? | | H ????? | | k % ????? | | ###############/#####p ""#####+###?????????? | | " p ###; ""### ?????????? | | # #### ""##????????????????? | | " #### T##????????????????? | | "= #### ""##???w????????????? | | " #### ""###???????????????? | | " " #### ""###???????????????? | | " """ ### ##???????????????? | | " """ #### ###???????????????? | | " " #### ###???????????????? | | " #### ##????????????????? | | " #### ##????????????????? | | # #### @" ##????????????????? | | ################# "" ##????????????????? | | ##################### ##????????????????? | | ######?????????????## ##????????????????? | | ???????????????????## ##????????????????? | | ???????????????????##""""""""""##????????????????? | | ???????????????????##"????????"##????????????????? | | ?????????????????????????????????????????????????? | | ?????????????????????????????????????????????????? | | ?????????????????????????????????????????????????? | | ??????????????????????BB????BB???????????????????? | | ??????????????????????BB????BB???????????????????? | | ?????????????????????????????????????????????????? | | ?????????????????????????????????????????????????? | | ?????????????????????????????????????????????????? | | ?????????????????????????????????????????????????? | | ?????????????????????????????????????????????????? | | ?????????????????????????????????????????????????? | | ?????????????????????????????????????????????????? | | ?????????????????????????????????????????????????? | | ?????????????????????????????????????????????????? | | ?????????????????????????????????????????????????? | | ?????????????????????????????????????????????????? | | ?????????????????????????????????????????????????? | | ?????????????????????????????????????????????????? | +----------------------------------------------------+ Best States ------------- Heat Dissipation 83 Energy Generation 49 Energy Capacity 400 Matter Stores 300 Matter Capacity 300 Sight Range 22 Terrain Scan Range 20 Terrain Scan Density 210 ECM Strength 2 Jamming Range 14 Power Amplification 40 Additional Mass Support 16 Armor Coverage 450 Resistance: EM 20 Evasion (%) 75 Targeting Accuracy 8 Recoil Reduction 5 Offensive Hacking 56 Defensive Hacking 12 Authchip Count 1 Item Schematics ----------------- Imp. Cesium-ion Thruster | -6/Factory | Hacked Cld. Nuclear Pulse Thruster | -4/Factory | Hacked Cld. Q-thruster | -1/Access | Scanalyzed Robot Schematics ------------------ None Fabricated ------------ B-48 Gladiator | x3 | -6/Factory | Preloaded M-28 Smith | x1 | -6/Factory | Preloaded Cld. Nuclear Pulse Thruster | x1 | -4/Factory Cld. Nuclear Pulse Thruster | x1 | -4/Factory Cld. Nuclear Pulse Thruster | x1 | -2/Research | Authchip Cld. Q-thruster | x1 | -1/Access Alien Tech Used ----------------- None Achievements -------------- Below Origins Overachiever Project G-00 Revising The Future Speed Demon Whoosh! Challenges ------------ None Game ------ Seed HelicalGyrokineticBiocell Manual? 0 Play Time 08:24:13 Cumulative 162.9 hours Start 2024.09.14 @ 19:15:21 End 2024.09.21 @ 20:12:23 Sessions 9 Manual Loads 0 Difficulty Rogue Special Mode None Game No. 39 Rogue 33 Adventurer 6 Explorer 0 Win Type 0 Total 3 Types 3/0/0/0/0/0/0/0/0 Lore% 41 Gallery% 62 Achievement% 52 Wizard Run 0 Options --------- Layout 1 ASCII 0 Keyboard 1 Movement Vi Keybinds 0 Fullscreen 2 Font 32/Tamsyn Map View 50x40 Zoom Use 0% Tactical HUD 1 Map Filters NONE Filters NONE Steam 1 RUN: 945eb28a-2c62-40a6-abbd-b9a0ccd1f80e